[Event "*** Titled Tuesday Blitz"]
[Site "Chess.com"]
[Date "2019.03.05"]
[Round "10"]
[White "KhalilMousavi77"]
[Black "eljanov"]
[Result "0-1"]
[WhiteElo "2695"]
[BlackElo "2778"]
[TimeControl "180+2"]
[EndTime "15:28:08 PST"]
[Termination "eljanov won by resignation"]

1. c4 {[%clk 0:03:01.5]} 1... Nf6 {[%clk 0:02:59.5]} 2. Nc3 {[%clk 0:03:01.8]}
2... e5 {[%clk 0:03:01]} 3. Nf3 {[%clk 0:03:01.1]} 3... Nc6 {[%clk 0:03:02.5]}
4. e4 {[%clk 0:03:02.6]} 4... Bc5 {[%clk 0:03:01.4]} 5. Nxe5 {[%clk 0:03:03]}
5... Nxe5 {[%clk 0:03:00]} 6. d4 {[%clk 0:03:04.4]} 6... Bb4 {[%clk 0:03:01.6]}
7. dxe5 {[%clk 0:03:05]} 7... Nxe4 {[%clk 0:03:03]} 8. Qd3 {[%clk 0:03:06.6]}
8... Nxc3 {[%clk 0:03:02.4]} 9. bxc3 {[%clk 0:03:08.5]} 9... Ba5 {[%clk
0:02:59.5]} 10. Qg3 {[%clk 0:03:08.6]} 10... O-O {[%clk 0:02:59.5]} 11. Bh6
{[%clk 0:02:43.3]} 11... Bxc3+ {[%clk 0:03:00.3]} 12. Qxc3 {[%clk 0:02:45.2]}
12... gxh6 {[%clk 0:03:01.5]} 13. Be2 {[%clk 0:02:46.5]} 13... d6 {[%clk
0:02:50]} 14. exd6 {[%clk 0:02:38.4]} 14... Qxd6 {[%clk 0:02:48.3]} 15. O-O
{[%clk 0:02:38.1]} 15... Re8 {[%clk 0:02:30.9]} 16. Rad1 {[%clk 0:01:58.5]}
16... Qg6 {[%clk 0:02:31.4]} 17. Bf3 {[%clk 0:01:54.6]} 17... c6 {[%clk
0:02:28.8]} 18. Rd4 {[%clk 0:01:50.3]} 18... Bf5 {[%clk 0:02:24.9]} 19. h4
{[%clk 0:01:49]} 19... Rad8 {[%clk 0:02:09.8]} 20. Rfd1 {[%clk 0:01:49.5]} 20...
Qg7 {[%clk 0:02:07.3]} 21. c5 {[%clk 0:01:26.6]} 21... Rxd4 {[%clk 0:02:04.3]}
22. Rxd4 {[%clk 0:01:28.5]} 22... Qe5 {[%clk 0:01:56.6]} 23. Qc4 {[%clk
0:01:15.9]} 23... Kg7 {[%clk 0:01:46.2]} 24. Rd1 {[%clk 0:01:04.5]} 24... Re7
{[%clk 0:01:43.2]} 25. a4 {[%clk 0:01:00.4]} 25... Rd7 {[%clk 0:01:37.7]} 26.
Rc1 {[%clk 0:00:54.6]} 26... Rd2 {[%clk 0:01:34.1]} 27. Qb4 {[%clk 0:00:33]}
27... Rb2 {[%clk 0:01:31.2]} 28. Qc3 {[%clk 0:00:28.6]} 28... Qxc3 {[%clk
0:01:29]} 29. Rxc3 {[%clk 0:00:30.5]} 29... a5 {[%clk 0:01:28.6]} 30. Rc4 {[%clk
0:00:21.5]} 30... Rb4 {[%clk 0:01:27.4]} 31. Rxb4 {[%clk 0:00:17.3]} 31... axb4
{[%clk 0:01:28.8]} 32. Bd1 {[%clk 0:00:18.7]} 32... Be6 {[%clk 0:01:30.1]} 33.
Bc2 {[%clk 0:00:14.5]} 33... b3 {[%clk 0:01:28.6]} 34. Bb1 {[%clk 0:00:15.8]}
34... Kf6 {[%clk 0:01:29.3]} 0-1

[Event "*** Titled Tuesday Blitz"]
[Site "Chess.com"]
[Date "2019.03.05"]
[Round "10"]
[White "NateSolon"]
[Black "KyronGriffith"]
[Result "1/2-1/2"]
[WhiteElo "2534"]
[BlackElo "2377"]
[TimeControl "180+2"]
[EndTime "15:28:10 PST"]
[Termination "Game drawn by agreement"]

1. d4 {[%clk 0:03:01.9]} 1... Nf6 {[%clk 0:03:01.2]} 2. Nf3 {[%clk 0:03:01]}
2... g6 {[%clk 0:03:02.6]} 3. g3 {[%clk 0:03:02.4]} 3... Bg7 {[%clk 0:03:04.1]}
4. Bg2 {[%clk 0:03:04]} 4... O-O {[%clk 0:03:05.8]} 5. O-O {[%clk 0:03:05.3]}
5... d6 {[%clk 0:03:07.5]} 6. b3 {[%clk 0:03:06.2]} 6... a5 {[%clk 0:03:06.2]}
7. c4 {[%clk 0:03:02.1]} 7... a4 {[%clk 0:03:02.2]} 8. Nc3 {[%clk 0:02:57.2]}
8... axb3 {[%clk 0:02:54.3]} 9. Qxb3 {[%clk 0:02:57.9]} 9... Nc6 {[%clk
0:02:44.8]} 10. Nd5 {[%clk 0:02:32.3]} 10... Nxd5 {[%clk 0:02:35.3]} 11. cxd5
{[%clk 0:02:32.9]} 11... Nxd4 {[%clk 0:02:36.9]} 12. Nxd4 {[%clk 0:02:34]} 12...
Bxd4 {[%clk 0:02:38.8]} 13. Rb1 {[%clk 0:02:34.6]} 13... b6 {[%clk 0:02:28.4]}
14. Bh6 {[%clk 0:02:30.7]} 14... Bg7 {[%clk 0:02:18.7]} 15. Bxg7 {[%clk
0:02:31.4]} 15... Kxg7 {[%clk 0:02:20.3]} 16. Rfc1 {[%clk 0:02:33]} 16... Ra7
{[%clk 0:02:17.2]} 17. h4 {[%clk 0:02:29.6]} 17... h5 {[%clk 0:02:16.6]} 18. Rc4
{[%clk 0:02:28.6]} 18... Bg4 {[%clk 0:01:34.2]} 19. f3 {[%clk 0:02:10.7]} 19...
Bd7 {[%clk 0:01:34.9]} 20. Rbc1 {[%clk 0:02:10.4]} 20... e5 {[%clk 0:01:21.4]}
21. dxe6 {[%clk 0:01:31.2]} 21... Bxe6 {[%clk 0:01:14.9]} 22. Qc3+ {[%clk
0:01:32]} 22... Qf6 {[%clk 0:01:08.8]} 23. Rxc7 {[%clk 0:01:32.6]} 23... Rxa2
{[%clk 0:00:53.7]} 24. Qe3 {[%clk 0:01:26.8]} 24... Qe5 {[%clk 0:00:40.2]} 25.
Kf2 {[%clk 0:01:22.9]} 25... Re8 {[%clk 0:00:36.7]} 26. Qxe5+ {[%clk 0:01:19.3]}
26... dxe5 {[%clk 0:00:38.6]} 27. Rb7 {[%clk 0:01:20.9]} 27... e4 {[%clk
0:00:23.2]} 28. Rxb6 {[%clk 0:01:18.2]} 28... exf3 {[%clk 0:00:21.5]} 29. Bxf3
{[%clk 0:01:20.1]} 29... Re7 {[%clk 0:00:21.5]} 30. Rbc6 {[%clk 0:01:19.3]}
30... Bf5 {[%clk 0:00:18.5]} 31. Rc7 {[%clk 0:01:19.9]} 31... Rxc7 {[%clk
0:00:18.7]} 32. Rxc7 {[%clk 0:01:21.8]} 32... Ra5 {[%clk 0:00:19.1]} 33. Ke3
{[%clk 0:01:21.4]} 33... Be6 {[%clk 0:00:20.2]} 34. Kf4 {[%clk 0:01:21.4]} 34...
Ra4+ {[%clk 0:00:19.7]} 35. Ke3 {[%clk 0:01:20.7]} 35... Ra3+ {[%clk 0:00:20.5]}
36. Kf2 {[%clk 0:01:21.6]} 36... Ra2 {[%clk 0:00:20.6]} 37. Rb7 {[%clk
0:01:22.2]} 37... Kf6 {[%clk 0:00:21.5]} 38. Rb6 {[%clk 0:01:23.4]} 38... Ra3
{[%clk 0:00:22.6]} 39. Rb5 {[%clk 0:01:23.6]} 39... Ra4 {[%clk 0:00:22.1]} 40.
Rc5 {[%clk 0:01:24.7]} 40... Ra2 {[%clk 0:00:20.9]} 41. Rb5 {[%clk 0:01:24.3]}
41... Rc2 {[%clk 0:00:21.6]} 42. Ra5 {[%clk 0:01:25.3]} 1/2-1/2

[Event "*** Titled Tuesday Blitz"]
[Site "Chess.com"]
[Date "2019.03.05"]
[Round "10"]
[White "Blagorod"]
[Black "Witaliss"]
[Result "0-1"]
[WhiteElo "2116"]
[BlackElo "2399"]
[TimeControl "180+2"]
[EndTime "15:28:12 PST"]
[Termination "Witaliss won by resignation"]

1. e4 {[%clk 0:03:01.9]} 1... d5 {[%clk 0:03:00.6]} 2. exd5 {[%clk 0:03:01.2]}
2... Nf6 {[%clk 0:03:01.6]} 3. Nf3 {[%clk 0:03:02.7]} 3... Nxd5 {[%clk
0:03:02.2]} 4. d4 {[%clk 0:03:01.9]} 4... g6 {[%clk 0:03:03.1]} 5. c4 {[%clk
0:03:02.6]} 5... Nb6 {[%clk 0:03:03.7]} 6. c5 {[%clk 0:03:04]} 6... Nd5 {[%clk
0:03:04.1]} 7. Bc4 {[%clk 0:03:05.4]} 7... c6 {[%clk 0:03:04.6]} 8. O-O {[%clk
0:03:05.2]} 8... Bg7 {[%clk 0:03:05.6]} 9. Nc3 {[%clk 0:03:05.2]} 9... O-O
{[%clk 0:03:05.9]} 10. Qb3 {[%clk 0:03:01.8]} 10... Nxc3 {[%clk 0:03:04]} 11.
bxc3 {[%clk 0:03:02.6]} 11... b5 {[%clk 0:03:05.2]} 12. cxb6 {[%clk 0:03:00.5]}
12... axb6 {[%clk 0:03:06.1]} 13. Ne5 {[%clk 0:02:52.8]} 13... e6 {[%clk
0:03:04.1]} 14. Bf4 {[%clk 0:02:45.5]} 14... Ba6 {[%clk 0:02:58.5]} 15. Rab1
{[%clk 0:02:35.1]} 15... Bxc4 {[%clk 0:02:57.8]} 16. Qxc4 {[%clk 0:02:22.5]}
16... Qd5 {[%clk 0:02:48.7]} 17. Rxb6 {[%clk 0:02:13.6]} 17... Rxa2 {[%clk
0:02:48.4]} 18. Qxd5 {[%clk 0:02:09.2]} 18... cxd5 {[%clk 0:02:48.6]} 19. Nxf7
{[%clk 0:02:02.7]} 19... Nd7 {[%clk 0:02:45.8]} 20. Rxe6 {[%clk 0:01:39.2]}
20... Rxf7 {[%clk 0:02:40.7]} 21. Bd6 {[%clk 0:01:38.7]} 21... Bf8 {[%clk
0:02:40.1]} 22. Re8 {[%clk 0:01:33.7]} 22... Kg7 {[%clk 0:02:40.4]} 23. Be5+
{[%clk 0:01:31.2]} 23... Nxe5 {[%clk 0:02:40.5]} 24. Rxe5 {[%clk 0:01:32.1]}
24... Rd7 {[%clk 0:02:40.8]} 25. f4 {[%clk 0:01:28.3]} 25... Rc2 {[%clk
0:02:37.7]} 26. Rf3 {[%clk 0:01:26.1]} 26... Rc7 {[%clk 0:02:32.6]} 27. f5
{[%clk 0:01:14.9]} 27... R2xc3 {[%clk 0:02:31.9]} 28. f6+ {[%clk 0:01:15.2]}
28... Kf7 {[%clk 0:02:31.8]} 29. Rf1 {[%clk 0:00:58.3]} 29... Rc1 {[%clk
0:02:30.9]} 30. Rxd5 {[%clk 0:00:57.1]} 30... Rxf1+ {[%clk 0:02:30.9]} 31. Kxf1
{[%clk 0:00:58.4]} 31... Kxf6 {[%clk 0:02:32]} 32. Kf2 {[%clk 0:00:53.1]} 32...
Ke6 {[%clk 0:02:31.8]} 33. Re5+ {[%clk 0:00:50]} 33... Kd7 {[%clk 0:02:30.4]}
34. Ke3 {[%clk 0:00:45]} 34... Bd6 {[%clk 0:02:31.1]} 35. Ra5 {[%clk 0:00:40.8]}
35... Bxh2 {[%clk 0:02:29.6]} 36. Ke4 {[%clk 0:00:40.7]} 36... Ke6 {[%clk
0:02:26.7]} 37. Ra6+ {[%clk 0:00:40.7]} 37... Ke7 {[%clk 0:02:25.2]} 38. g4
{[%clk 0:00:40.6]} 38... Rd7 {[%clk 0:02:21.1]} 39. Rb6 {[%clk 0:00:34.8]} 39...
Kf7 {[%clk 0:02:21.4]} 40. Ra6 {[%clk 0:00:30.3]} 40... Kg7 {[%clk 0:02:20.1]}
41. g5 {[%clk 0:00:27.4]} 41... Bg1 {[%clk 0:02:16.1]} 42. d5 {[%clk 0:00:28]}
42... Bh2 {[%clk 0:02:17]} 43. Kd4 {[%clk 0:00:25.4]} 43... Re7 {[%clk
0:02:15.9]} 44. d6 {[%clk 0:00:20.7]} 44... Rd7 {[%clk 0:02:15.8]} 45. Kc5
{[%clk 0:00:21]} 45... Kf7 {[%clk 0:02:15.8]} 46. Kd5 {[%clk 0:00:20]} 46... Bf4
{[%clk 0:02:13.4]} 47. Rc6 {[%clk 0:00:19.8]} 47... Bxg5 {[%clk 0:02:10.9]} 48.
Rc7 {[%clk 0:00:20.9]} 48... Ke8 {[%clk 0:02:11.5]} 49. Ke6 {[%clk 0:00:22]}
49... Rxd6+ {[%clk 0:02:10.5]} 50. Kxd6 {[%clk 0:00:21.5]} 50... Bf4+ {[%clk
0:02:11.4]} 0-1

[Event "*** Titled Tuesday Blitz"]
[Site "Chess.com"]
[Date "2019.03.05"]
[Round "10"]
[White "LaughingTiger"]
[Black "tomozupan"]
[Result "0-1"]
[WhiteElo "2138"]
[BlackElo "2226"]
[TimeControl "180+2"]
[EndTime "15:28:17 PST"]
[Termination "tomozupan won by checkmate"]

1. d4 {[%clk 0:02:55.9]} 1... Nf6 {[%clk 0:03:00]} 2. Nf3 {[%clk 0:02:54.8]}
2... g6 {[%clk 0:03:01.1]} 3. e3 {[%clk 0:02:55.9]} 3... Bg7 {[%clk 0:03:01.3]}
4. Bd3 {[%clk 0:02:57.6]} 4... O-O {[%clk 0:03:02.4]} 5. O-O {[%clk 0:02:58.5]}
5... d5 {[%clk 0:03:02.9]} 6. b3 {[%clk 0:02:58.6]} 6... c5 {[%clk 0:03:03.3]}
7. Bb2 {[%clk 0:02:59.6]} 7... cxd4 {[%clk 0:03:03.3]} 8. exd4 {[%clk
0:03:00.2]} 8... Nc6 {[%clk 0:02:59.8]} 9. Nbd2 {[%clk 0:03:01.1]} 9... Nb4
{[%clk 0:03:00.5]} 10. Be2 {[%clk 0:02:45.1]} 10... Bf5 {[%clk 0:02:59.1]} 11.
c3 {[%clk 0:02:45.9]} 11... Nd3 {[%clk 0:02:53.6]} 12. Ba3 {[%clk 0:02:42.2]}
12... Rc8 {[%clk 0:02:48.1]} 13. g3 {[%clk 0:02:36.8]} 13... Rxc3 {[%clk
0:02:45.5]} 14. Nb1 {[%clk 0:02:35.4]} 14... Ne4 {[%clk 0:02:27.8]} 15. Bxd3
{[%clk 0:02:26]} 15... Rxd3 {[%clk 0:02:22.7]} 16. Qxd3 {[%clk 0:02:25.4]} 16...
Nxg3 {[%clk 0:02:22.9]} 17. Qe3 {[%clk 0:02:18.2]} 17... Nxf1 {[%clk 0:02:07.1]}
18. Kxf1 {[%clk 0:02:20.1]} 18... Qa5 {[%clk 0:01:38.3]} 19. Qd2 {[%clk
0:02:17.3]} 19... Qa6+ {[%clk 0:01:33]} 20. Kg1 {[%clk 0:02:13.2]} 20... Bxb1
{[%clk 0:01:32.8]} 21. Bxe7 {[%clk 0:02:12.7]} 21... Re8 {[%clk 0:01:30.6]} 22.
Rxb1 {[%clk 0:02:14]} 22... Rxe7 {[%clk 0:01:31.1]} 23. Rc1 {[%clk 0:02:15.6]}
23... Qe6 {[%clk 0:01:18.8]} 24. Qg5 {[%clk 0:02:07]} 24... h6 {[%clk
0:01:17.6]} 25. Qg3 {[%clk 0:02:03.1]} 25... Kh7 {[%clk 0:01:13.7]} 26. Qh4
{[%clk 0:02:01.6]} 26... Bf6 {[%clk 0:01:08]} 27. Qf4 {[%clk 0:01:55.2]} 27...
g5 {[%clk 0:01:02.9]} 28. Qg3 {[%clk 0:01:49.5]} 28... b6 {[%clk 0:00:55.1]} 29.
h3 {[%clk 0:01:40.6]} 29... Qf5 {[%clk 0:00:45.8]} 30. Kg2 {[%clk 0:01:37.8]}
30... Re4 {[%clk 0:00:30.3]} 31. Qc7 {[%clk 0:01:30]} 31... Bxd4 {[%clk
0:00:28.3]} 32. Qb7 {[%clk 0:01:15.1]} 32... Bc5 {[%clk 0:00:15.7]} 33. Rd1
{[%clk 0:01:09]} 33... Re2 {[%clk 0:00:15.9]} 34. Qxd5 {[%clk 0:01:03.1]} 34...
Rxf2+ {[%clk 0:00:15]} 35. Kg3 {[%clk 0:00:59.6]} 35... Qf4# {[%clk 0:00:16]}
0-1

[Event "*** Titled Tuesday Blitz"]
[Site "Chess.com"]
[Date "2019.03.05"]
[Round "10"]
[White "Walter_White_Poland"]
[Black "ChessicallyInclined"]
[Result "1-0"]
[WhiteElo "2184"]
[BlackElo "2383"]
[TimeControl "180+2"]
[EndTime "15:28:26 PST"]
[Termination "Walter_White_Poland won by resignation"]

1. e4 {[%clk 0:03:01.9]} 1... e5 {[%clk 0:02:59.8]} 2. Nf3 {[%clk 0:03:02.8]}
2... Nc6 {[%clk 0:03:01.2]} 3. Bb5 {[%clk 0:03:03.4]} 3... a6 {[%clk 0:03:02.6]}
4. Ba4 {[%clk 0:03:03.7]} 4... Nf6 {[%clk 0:03:03.4]} 5. O-O {[%clk 0:03:04.4]}
5... Be7 {[%clk 0:03:04.8]} 6. Re1 {[%clk 0:03:05.5]} 6... b5 {[%clk 0:03:06.3]}
7. Bb3 {[%clk 0:03:06.4]} 7... d6 {[%clk 0:03:07.7]} 8. c3 {[%clk 0:03:07.3]}
8... O-O {[%clk 0:03:08.7]} 9. h3 {[%clk 0:03:08.2]} 9... Nb8 {[%clk 0:03:09.6]}
10. d4 {[%clk 0:03:08.4]} 10... Nbd7 {[%clk 0:03:11.1]} 11. Nbd2 {[%clk
0:03:07]} 11... Bb7 {[%clk 0:03:11.9]} 12. Bc2 {[%clk 0:03:01.8]} 12... Re8
{[%clk 0:03:13.3]} 13. Nf1 {[%clk 0:03:02.7]} 13... Bf8 {[%clk 0:03:14.8]} 14.
Ng3 {[%clk 0:03:03.6]} 14... g6 {[%clk 0:03:16.4]} 15. a4 {[%clk 0:03:04.2]}
15... c5 {[%clk 0:03:16.1]} 16. d5 {[%clk 0:03:01.4]} 16... c4 {[%clk 0:03:17]}
17. Bg5 {[%clk 0:02:59.1]} 17... Nc5 {[%clk 0:03:15.1]} 18. Nh2 {[%clk
0:02:34.9]} 18... Be7 {[%clk 0:03:15.6]} 19. Bh6 {[%clk 0:02:12.7]} 19... Nfd7
{[%clk 0:03:13.5]} 20. Qd2 {[%clk 0:02:06.5]} 20... Nxa4 {[%clk 0:03:10.1]} 21.
Bxa4 {[%clk 0:02:05.8]} 21... bxa4 {[%clk 0:03:12]} 22. Rxa4 {[%clk 0:02:01.6]}
22... Nc5 {[%clk 0:03:13.1]} 23. Rxc4 {[%clk 0:01:52.3]} 23... a5 {[%clk
0:03:13.5]} 24. Rxc5 {[%clk 0:01:42.3]} 24... dxc5 {[%clk 0:03:14.2]} 25. Nf3
{[%clk 0:01:29.1]} 25... f6 {[%clk 0:03:15]} 26. Rd1 {[%clk 0:01:22.5]} 26...
Qd6 {[%clk 0:03:15.4]} 27. c4 {[%clk 0:01:09.5]} 27... a4 {[%clk 0:03:14.9]} 28.
Ne1 {[%clk 0:01:01.7]} 28... Ba6 {[%clk 0:03:14.5]} 29. Qc2 {[%clk 0:00:52.9]}
29... Reb8 {[%clk 0:03:15.2]} 30. Nd3 {[%clk 0:00:47.7]} 30... Bc8 {[%clk
0:03:12]} 31. Be3 {[%clk 0:00:45.7]} 31... Qb6 {[%clk 0:03:12.9]} 32. Ne2 {[%clk
0:00:44]} 32... Bd6 {[%clk 0:03:13.5]} 33. Nc3 {[%clk 0:00:44.1]} 33... Bd7
{[%clk 0:03:14.6]} 34. Ra1 {[%clk 0:00:42.1]} 34... Qb3 {[%clk 0:03:13.6]} 35.
Qxb3 {[%clk 0:00:39.7]} 35... Rxb3 {[%clk 0:03:15.5]} 36. Ra2 {[%clk 0:00:31]}
36... a3 {[%clk 0:03:09.7]} 37. Bxc5 {[%clk 0:00:27.8]} 37... Bxc5 {[%clk
0:02:54.9]} 38. Nxc5 {[%clk 0:00:28.6]} 38... Rxb2 {[%clk 0:02:55.5]} 39. Rxb2
{[%clk 0:00:11]} 39... axb2 {[%clk 0:02:56.4]} 40. Nxd7 {[%clk 0:00:11.4]} 40...
Ra1+ {[%clk 0:02:57.4]} 41. Kh2 {[%clk 0:00:11.5]} 41... b1=Q {[%clk 0:02:59.3]}
42. Nxb1 {[%clk 0:00:11.8]} 42... Rxb1 {[%clk 0:03:01.2]} 43. c5 {[%clk
0:00:09.9]} 43... Kf7 {[%clk 0:03:02]} 44. c6 {[%clk 0:00:10.5]} 44... Ke7
{[%clk 0:03:00.5]} 45. f3 {[%clk 0:00:10.5]} 45... Rc1 {[%clk 0:03:00.7]} 46.
Nb6 {[%clk 0:00:09.6]} 46... f5 {[%clk 0:02:58]} 47. Nc8+ {[%clk 0:00:07.5]}
47... Kf6 {[%clk 0:02:52.8]} 48. d6 {[%clk 0:00:07.5]} 48... Ke6 {[%clk
0:02:48.9]} 49. d7 {[%clk 0:00:07.8]} 49... Rd1 {[%clk 0:02:50.1]} 50. Nb6
{[%clk 0:00:06.4]} 50... Ke7 {[%clk 0:02:47.1]} 51. c7 {[%clk 0:00:05.8]} 51...
Rxd7 {[%clk 0:02:43.2]} 52. c8=Q {[%clk 0:00:06.6]} 52... Rd4 {[%clk 0:02:44.6]}
53. Nd5+ {[%clk 0:00:07.3]} 53... Kf7 {[%clk 0:02:42.7]} 54. Qd7+ {[%clk
0:00:08]} 54... Kg8 {[%clk 0:02:42.6]} 55. Qe6+ {[%clk 0:00:08.6]} 55... Kf8
{[%clk 0:02:43.1]} 56. Qxe5 {[%clk 0:00:09.7]} 1-0

[Event "*** Titled Tuesday Blitz"]
[Site "Chess.com"]
[Date "2019.03.05"]
[Round "10"]
[White "FrenchandSlav"]
[Black "Karina_Oparina"]
[Result "1-0"]
[WhiteElo "2300"]
[BlackElo "2167"]
[TimeControl "180+2"]
[EndTime "15:28:31 PST"]
[Termination "FrenchandSlav won by resignation"]

1. d4 {[%clk 0:03:01.9]} 1... Nf6 {[%clk 0:02:58]} 2. c4 {[%clk 0:03:03.2]} 2...
e6 {[%clk 0:02:57.3]} 3. Nc3 {[%clk 0:03:04.3]} 3... Bb4 {[%clk 0:02:57.3]} 4.
f3 {[%clk 0:03:05.6]} 4... c5 {[%clk 0:02:57.1]} 5. d5 {[%clk 0:03:06.4]} 5...
d6 {[%clk 0:02:57.1]} 6. e4 {[%clk 0:03:06.6]} 6... e5 {[%clk 0:02:57.6]} 7. Ne2
{[%clk 0:03:05.5]} 7... O-O {[%clk 0:02:56.6]} 8. g4 {[%clk 0:03:05.6]} 8...
Bxg4 {[%clk 0:02:31.9]} 9. fxg4 {[%clk 0:02:57.4]} 9... Nxe4 {[%clk 0:02:29.7]}
10. Qd3 {[%clk 0:02:49.2]} 10... Qh4+ {[%clk 0:02:02.5]} 11. Ng3 {[%clk
0:02:44.5]} 11... Nxg3 {[%clk 0:01:24.7]} 12. Qxg3 {[%clk 0:02:44.1]} 12...
Bxc3+ {[%clk 0:01:25.3]} 13. bxc3 {[%clk 0:02:43.6]} 13... Qf6 {[%clk
0:01:20.1]} 14. Be2 {[%clk 0:02:32.7]} 14... Nd7 {[%clk 0:01:18.3]} 15. Rf1
{[%clk 0:02:31]} 15... Qg6 {[%clk 0:01:11.6]} 16. h4 {[%clk 0:02:28.6]} 16...
Nf6 {[%clk 0:01:01.2]} 17. Qh3 {[%clk 0:02:05.4]} 17... Qc2 {[%clk 0:00:46.5]}
18. Qd3 {[%clk 0:01:50.5]} 18... Qxd3 {[%clk 0:00:43.2]} 19. Bxd3 {[%clk
0:01:52.4]} 19... Nxg4 {[%clk 0:00:43.3]} 20. Rg1 {[%clk 0:01:51.4]} 20... h5
{[%clk 0:00:35]} 21. Bf5 {[%clk 0:01:46.4]} 21... g6 {[%clk 0:00:27.9]} 22. Bxg4
{[%clk 0:01:47.4]} 22... hxg4 {[%clk 0:00:28.3]} 23. Rxg4 {[%clk 0:01:48.4]}
23... Kg7 {[%clk 0:00:29.1]} 24. Bd2 {[%clk 0:01:44.7]} 24... f5 {[%clk
0:00:29]} 25. Rg5 {[%clk 0:01:44.7]} 25... Rh8 {[%clk 0:00:29.2]} 26. h5 {[%clk
0:01:39.6]} 26... Rxh5 {[%clk 0:00:28.4]} 27. Rxh5 {[%clk 0:01:41]} 27... gxh5
{[%clk 0:00:29]} 28. Kf2 {[%clk 0:01:42.9]} 28... f4 {[%clk 0:00:29.7]} 29. Rg1+
{[%clk 0:01:39.6]} 29... Kf6 {[%clk 0:00:27.6]} 30. Kf3 {[%clk 0:01:40.7]} 30...
Rh8 {[%clk 0:00:19.5]} 31. Be1 {[%clk 0:01:40.4]} 31... Kf5 {[%clk 0:00:19.4]}
32. Bh4 {[%clk 0:01:40.4]} 32... e4+ {[%clk 0:00:20.3]} 33. Kf2 {[%clk
0:01:41.9]} 33... Rh7 {[%clk 0:00:20.7]} 34. Rg5+ {[%clk 0:01:42.2]} 34... Kf6
{[%clk 0:00:20]} 35. Rxh5+ {[%clk 0:01:11.8]} 35... Kg6 {[%clk 0:00:18.9]} 36.
Rxh7 {[%clk 0:01:12.9]} 36... Kxh7 {[%clk 0:00:18.3]} 37. Bg5 {[%clk 0:01:14.5]}
37... f3 {[%clk 0:00:16.5]} 38. Bf4 {[%clk 0:01:15.9]} 38... Kg6 {[%clk
0:00:15.6]} 39. Bxd6 {[%clk 0:01:17]} 39... Kf5 {[%clk 0:00:16.6]} 40. Bxc5
{[%clk 0:01:18.2]} 40... b6 {[%clk 0:00:16.9]} 41. Be3 {[%clk 0:01:19.4]} 41...
Ke5 {[%clk 0:00:17]} 42. Bd4+ {[%clk 0:01:20.5]} 42... Kf4 {[%clk 0:00:17.1]}
43. d6 {[%clk 0:01:20.3]} 1-0

[Event "*** Titled Tuesday Blitz"]
[Site "Chess.com"]
[Date "2019.03.05"]
[Round "10"]
[White "Last7Samurai"]
[Black "IakovUlivar"]
[Result "1/2-1/2"]
[WhiteElo "2685"]
[BlackElo "2530"]
[TimeControl "180+2"]
[EndTime "15:28:37 PST"]
[Termination "Game drawn by agreement"]

1. e4 {[%clk 0:03:01.9]} 1... e5 {[%clk 0:02:58.7]} 2. Nf3 {[%clk 0:03:01]} 2...
Nf6 {[%clk 0:02:59.7]} 3. Nxe5 {[%clk 0:03:01.3]} 3... d6 {[%clk 0:03:00.5]} 4.
Nf3 {[%clk 0:03:02.4]} 4... Nxe4 {[%clk 0:03:01.4]} 5. c4 {[%clk 0:03:02.2]}
5... Be7 {[%clk 0:02:55.6]} 6. Nc3 {[%clk 0:03:02.3]} 6... Nf6 {[%clk
0:02:54.7]} 7. d4 {[%clk 0:03:02.7]} 7... O-O {[%clk 0:02:54.2]} 8. Be2 {[%clk
0:03:02.7]} 8... Re8 {[%clk 0:02:53.2]} 9. O-O {[%clk 0:03:03.4]} 9... c5 {[%clk
0:02:42.4]} 10. d5 {[%clk 0:03:01.5]} 10... Bg4 {[%clk 0:02:36.6]} 11. h3 {[%clk
0:03:01.7]} 11... Bxf3 {[%clk 0:02:35.6]} 12. Bxf3 {[%clk 0:03:03.6]} 12... Nbd7
{[%clk 0:02:35.7]} 13. b3 {[%clk 0:03:02.2]} 13... Bf8 {[%clk 0:02:32]} 14. Bb2
{[%clk 0:03:02.7]} 14... a6 {[%clk 0:02:29.8]} 15. Be2 {[%clk 0:02:59.7]} 15...
Ne4 {[%clk 0:02:22.7]} 16. Nxe4 {[%clk 0:02:54.4]} 16... Rxe4 {[%clk 0:02:24.6]}
17. Bd3 {[%clk 0:02:52.9]} 17... Re8 {[%clk 0:02:25]} 18. f4 {[%clk 0:02:52.7]}
18... Be7 {[%clk 0:01:54.3]} 19. Qc2 {[%clk 0:02:06.1]} 19... h6 {[%clk
0:00:39]} 20. Bf5 {[%clk 0:01:47]} 20... Bf6 {[%clk 0:00:34.2]} 21. Bxd7 {[%clk
0:01:47.5]} 21... Bxb2 {[%clk 0:00:35]} 22. Bxe8 {[%clk 0:01:48.6]} 22... Bd4+
{[%clk 0:00:17.2]} 23. Kh1 {[%clk 0:01:48.7]} 23... Bxa1 {[%clk 0:00:19.1]} 24.
Bxf7+ {[%clk 0:01:43.3]} 24... Kxf7 {[%clk 0:00:21]} 25. Rxa1 {[%clk 0:01:44.1]}
25... Qf6 {[%clk 0:00:20.1]} 26. Re1 {[%clk 0:01:44.8]} 26... Re8 {[%clk
0:00:18.3]} 27. Rxe8 {[%clk 0:01:45.3]} 27... Kxe8 {[%clk 0:00:20.2]} 28. Qe4+
{[%clk 0:01:46.5]} 28... Kd8 {[%clk 0:00:19.8]} 29. f5 {[%clk 0:01:42.5]} 29...
Kc7 {[%clk 0:00:18.6]} 30. Qe6 {[%clk 0:01:41.5]} 30... Qg5 {[%clk 0:00:14.5]}
31. Qg6 {[%clk 0:01:29.6]} 31... Qxg6 {[%clk 0:00:11.2]} 32. fxg6 {[%clk
0:01:29.4]} 32... Kd7 {[%clk 0:00:13.1]} 33. Kh2 {[%clk 0:01:03]} 33... Ke7
{[%clk 0:00:14.4]} 34. Kg3 {[%clk 0:01:04.3]} 34... Kf6 {[%clk 0:00:15.7]} 35.
Kf4 {[%clk 0:00:58.8]} 35... Kxg6 {[%clk 0:00:16.8]} 36. g4 {[%clk 0:00:59.4]}
36... Kf6 {[%clk 0:00:18]} 37. h4 {[%clk 0:01:00.6]} 37... g5+ {[%clk
0:00:13.1]} 38. hxg5+ {[%clk 0:01:02.5]} 38... hxg5+ {[%clk 0:00:15]} 39. Ke4
{[%clk 0:01:03.9]} 39... Kg6 {[%clk 0:00:15.5]} 1/2-1/2